fUSD/lending_fUSD_20260412
["ID","MTS","AMOUNT","RATE_DAILY","PERIOD"]
[420338858,1775997053266,-1568.97,0.000377,120]
[420338859,1775997053300,-1564.87,0.000377,120]
[420338860,1775997053326,-1564.87,0.000377,120]
[420338861,1775997053368,-1564.87,0.000377,120]
[420338862,1775997053392,-1000.0,0.000377,13]
[420338863,1775997053416,-500.0,0.00037709,10]
[420338864,1775997053431,-500.0,0.00037709,15]
[420338865,1775997053457,-500.0,0.00037709,15]
[420338866,1775997053466,-500.0,0.00037709,15]
[420338867,1775997053482,-500.0,0.00037709,15]
[420338868,1775997053501,-2000.0,0.0003771,120]
[420338869,1775997053510,-509.0,0.0003771,13]
[420338870,1775997053525,-150.0,0.00037736,7]
[420338871,1775997053543,-651.39,0.0003774,120]
[420338872,1775997053552,-2000.0,0.00037764,120]
[420338873,1775997053566,-500.0,0.00037768,120]
[420338874,1775997053584,-1574.0,0.00037784,11]
[420338875,1775997053593,-150.0,0.00037791,7]
[420338876,1775997053607,-2100.0,0.000378,13]
[420338877,1775997053619,-151.0,0.00037801,7]
[420338878,1775997053628,-150.0,0.00037819,60]
[420338879,1775997053638,-2000.0,0.00037819,120]
[420338880,1775997053655,-156.0,0.00037825,30]
[420338881,1775997053666,-295.0,0.00037825,30]
[420338882,1775997053682,-439.0,0.00037825,30]
[420338883,1775997053697,-724.0,0.00037825,30]
[420338884,1775997053707,-156.0,0.00037825,30]
[420338885,1775997053717,-240.0,0.00037825,30]
[420338886,1775997053736,-504.0,0.00037826,30]
[420338887,1775997053746,-343.0,0.00037826,30]
[420338888,1775997053755,-335.0,0.00037826,30]
[420338889,1775997053765,-1000.0,0.00037832,7]
[420338890,1775997053783,-2000.0,0.00037874,120]
[420338891,1775997053792,-270.74155764,0.0003788,2]
[420338892,1775997053802,-151.0,0.0003788,2]
[420338893,1775997053827,-238.40198,0.000379,7]
[420338894,1775997053836,-238.40198,0.000379,7]
[420338895,1775997053847,-238.40198,0.000379,7]
[420338896,1775997053876,-238.40198,0.000379,7]
[420338897,1775997053886,-3200.0,0.000379,13]
[420338898,1775997053923,-29504.286797,0.000379,120]
[420338899,1775997053950,-2000.0,0.00037929,120]
[420338900,1775997053977,-514.24972482,0.0003797,15]
[420338901,1775997054049,-2500.0,0.0003797,5]
[420338902,1775997054261,-2500.0,0.0003797,5]
[420338903,1775997054433,-2500.0,0.0003797,5]
[420338904,1775997054472,-578.20924308,0.00037971,11]
[420338905,1775997054563,-578.20924308,0.00037971,11]
[420338906,1775997054755,-151.0,0.00037971,11]
[420338907,1775997054919,-200.0,0.00037971,11]
[420338908,1775997055072,-646.65982734,0.00037971,11]
[420338909,1775997055146,-500.0,0.00037971,11]
[420338910,1775997055194,-8565.75555911,0.00037971,11]
[420338911,1775997055207,-500.0,0.00037971,11]
[420338912,1775997055281,-198.7287993,0.00037971,11]
[420338913,1775997055426,-151.0,0.00037971,11]
[420338914,1775997055462,-200.0,0.00037971,11]
[420338915,1775997055472,-670.58624095,0.00037971,11]
[420338916,1775997055513,-1280.88388878,0.00037971,11]
[420338917,1775997055546,-500.0,0.00037971,11]
[420338918,1775997055606,-151.0,0.00037971,11]
[420338919,1775997055647,-462.84035649,0.00037971,11]
[420338920,1775997055658,-500.0,0.00037971,11]
[420338921,1775997055687,-1328.27659266,0.00037971,11]
[420338922,1775997055698,-200.0,0.00037971,11]
[420338923,1775997055708,-151.0,0.00037971,11]
[420338924,1775997055721,-500.0,0.00037971,11]
[420338925,1775997055756,-1377.42282659,0.00037971,11]
[420338926,1775997055774,-151.0,0.00037971,11]
[420338927,1775997055788,-500.0,0.00037971,11]
[420338928,1775997055798,-1428.38747117,0.00037971,11]
[420338929,1775997055810,-151.0,0.00037971,11]
[420338930,1775997055828,-500.0,0.00037971,11]
[420338931,1775997055838,-1481.23780761,0.00037971,11]
[420338932,1775997055852,-500.0,0.00037971,11]
[420338933,1775997055864,-151.0,0.00037971,11]
[420338934,1775997055873,-1536.04360649,0.00037971,11]
[420338935,1775997055886,-500.0,0.00037971,11]
[420338936,1775997055896,-151.0,0.00037971,11]
[420338937,1775997055906,-500.0,0.00037971,11]
[420338938,1775997055923,-151.0,0.00037971,11]
[420338939,1775997055932,-151.0,0.00037971,11]
[420338940,1775997055944,-500.0,0.00037971,11]
[420338941,1775997055954,-151.0,0.00037971,11]
[420338942,1775997055963,-151.0,0.00037971,11]
[420338943,1775997055980,-500.0,0.00037971,11]
[420338944,1775997055989,-151.0,0.00037971,11]
[420338945,1775997056002,-151.0,0.00037971,11]
[420338946,1775997056012,-500.0,0.00037971,11]
[420338947,1775997056021,-151.0,0.00037971,11]
[420338948,1775997056031,-151.0,0.00037971,11]
[420338949,1775997056046,-500.0,0.00037971,11]
[420338950,1775997056063,-500.0,0.00037971,11]
[420338951,1775997056074,-151.0,0.00037971,11]
[420338952,1775997056084,-174.61919142,0.00037971,11]
[420338953,1775997056100,-500.0,0.00037971,11]
[420338954,1775997056113,-500.0,0.00037971,11]
[420338955,1775997056132,-500.0,0.00037971,11]
[420338956,1775997056143,-500.0,0.00037971,11]
[420338957,1775997056159,-500.0,0.00037971,11]
[420338958,1775997056171,-500.0,0.00037971,11]
[420338959,1775997056198,-500.0,0.00037971,11]
[420338960,1775997056211,-500.0,0.00037971,11]
[420338961,1775997056228,-592.50770149,0.00037971,11]
[420338962,1775997056249,-500.0,0.00037971,11]
[420338963,1775997056262,-500.0,0.00037971,11]
[420338964,1775997056286,-10000.0,0.00037971,11]
[420338965,1775997056317,-500.0,0.00037971,11]
[420338966,1775997056344,-500.0,0.00037971,11]
[420338967,1775997056368,-500.0,0.00037971,11]
[420338968,1775997056379,-500.0,0.00037971,11]
[420338969,1775997056402,-534.67829723,0.00037971,11]
[420338970,1775997056428,-674.63978611,0.00037971,11]
[420338971,1775997056809,-170.0,0.00037971,11]
[420338972,1775997056853,-2000.0,0.00037984,120]
[420338973,1775997056868,-3506.0,0.0003799,120]
[420338974,1775997056885,-3506.0,0.0003799,120]
[420338975,1775997056923,-3506.0,0.0003799,120]
[420338976,1775997056933,-3506.0,0.0003799,120]
[420338977,1775997056964,-3506.0,0.0003799,120]
[420338978,1775997056977,-597.28564311,0.0003799,120]
[420338979,1775997057766,-468.40160027,0.0003799,120]
[420338981,1775997376415,160.0,0.000301,120]
[420338982,1775997386186,160.0,0.000301,120]
[420338989,1775997576627,502.0,0.00030137,120]
[420338990,1775997745644,1600.0,0.00028664,120]
[420338991,1775997778575,156.0,0.000301,120]
[420338992,1775997898675,1500.0,0.00027028,120]
[420338993,1775998222721,1964.0,0.0003,120]
[420339004,1775998233194,-150.0,0.00013795,2]
[420339005,1775998233204,-150.0,0.00013974,2]
[420339007,1775998233334,-1200.0,0.00013974,2]
[420339008,1775998233436,-128327.64370387,0.00013975,2]
[420339009,1775998233449,-629.98859613,0.00013975,2]
[420339010,1775998233470,-500.0,0.00014074,2]
[420339011,1775998233483,-500.0,0.00014074,2]
[420339012,1775998233492,-803.81873474,0.00014321,2]
[420339013,1775998233502,-150.0,0.000152,2]
[420339014,1775998233530,-1447.024134,0.0001525,2]
[420339015,1775998233540,-150.3822,0.000167,2]
[420339016,1775998233550,-803.81873468,0.00017102,2]
[420339017,1775998233560,-5059.1347832,0.000178,2]
[420339018,1775998233579,-160.0,0.000178,2]
[420339019,1775998233589,-150.7654,0.000182,2]
[420339020,1775998233601,-3981.2265521,0.00018418,2]
[420339022,1775998233612,-151.1496,0.000197,2]
[420339024,1775998233623,-160.0,0.000198,3]
[420339026,1775998233639,-160.0,0.000198,2]
[420339028,1775998233649,-160.0,0.000198,3]
[420339030,1775998233658,-160.0,0.000198,3]
[420339032,1775998233683,-160.0,0.000198,4]
[420339033,1775998233692,-160.0,0.000198,4]
[420339034,1775998233706,-803.81873468,0.00019883,2]
[420339036,1775998233728,-500.62994391,0.00019911,2]
[420339038,1775998233738,-162.0,0.0002,2]
[420339040,1775998233770,-183.0,0.0002,2]
[420339042,1775998233784,-156.0,0.0002,3]
[420339043,1775998233800,-156.0,0.0002,2]
[420339044,1775998233825,-156.0,0.0002,4]
[420339045,1775998233838,-299.0,0.0002,2]
[420339046,1775998233853,-176.0,0.0002,2]
[420339047,1775998233875,-152.0,0.0002,2]
[420339048,1775998233890,-157.0,0.0002,2]
[420339049,1775998233916,-1344.0,0.00020011,2]
[420339050,1775998233933,-407.317797,0.00020011,2]
[420339051,1775998234748,-856.682203,0.00020011,2]
[420339052,1775998234790,-926.0,0.00020011,2]
[420339053,1775998234800,-1218.0,0.00020011,2]
[420339054,1775998234819,-6025.0,0.00020011,2]
[420339055,1775998234834,-239.584,0.00020011,2]
[420339056,1775998234849,-2472.0,0.00020011,2]
[420339057,1775998234859,-416.0,0.00020011,2]
[420339058,1775998234877,-183.0,0.00021,2]
[420339059,1775998234887,-299.0,0.00021,2]
[420339060,1775998234897,-176.0,0.00021,2]
[420339061,1775998234916,-152.0,0.00021,2]
[420339062,1775998234925,-157.0,0.00021,2]
[420339063,1775998234938,-151.5348,0.000212,2]
[420339064,1775998234949,-1000.0,0.00021818,2]
[420339065,1775998234962,-183.0,0.00022,2]
[420339066,1775998234977,-299.0,0.00022,2]
[420339067,1775998234987,-176.0,0.00022,2]
[420339068,1775998234996,-152.0,0.00022,2]
[420339069,1775998235009,-168.0,0.00022,2]
[420339070,1775998235025,-500.0,0.00022427,2]
[420339071,1775998235035,-134.29682299,0.00022427,2]
[420339072,1775998235110,-365.70317701,0.00022427,2]
[420339073,1775998235119,-130.54527119,0.00022427,2]
[420339086,1775998241016,-500.62994387,0.00022071,2]
[420339088,1775998241030,-369.45472881,0.00022427,2]
[420339090,1775998241043,-31.77672945,0.00022427,2]
[420339124,1775998246115,-441.34,0.00022427,2]
[420339133,1775998246202,-26.88327055,0.00022427,2]
[420339135,1775998246211,-12.94747877,0.00022427,2]
[420339145,1775998498179,872.78,0.00022,120]
[420339146,1775998579908,1100.0,0.00030136,120]
[420339156,1775998908703,296.0,0.00028,120]
[420339159,1775999350483,200.0,0.0003,120]
[420339173,1775999433012,-250.0,0.00013,2]
[420339174,1775999433025,-308.74,0.00013775,2]
[420339175,1775999433078,-921.4344,0.00013775,2]
[420339176,1775999433092,-2696.68532123,0.00013775,2]
[420339177,1775999433306,-9079.31557877,0.00013775,2]
[420339178,1775999433333,-500.0,0.00013873,2]
[420339179,1775999433363,-150.0,0.00013873,2]
[420339180,1775999433498,-500.0,0.00013874,2]
[420339181,1775999433520,-215.39830433,0.00013874,2]
[420339182,1775999433545,-500.0,0.00013874,2]
[420339183,1775999433558,-2746.44523017,0.00013874,2]
[420339184,1775999433587,-1000.0,0.00013875,2]
[420339185,1775999433598,-500.0,0.00014074,2]
[420339186,1775999433612,-500.0,0.00014074,2]
[420339187,1775999433631,-500.0,0.00014074,2]
[420339188,1775999433642,-500.0,0.00014074,2]
[420339189,1775999433654,-1416.36639114,0.000143,2]
[420339190,1775999433670,-1722.47449563,0.000143,2]
[420339191,1775999433685,-544.144535,0.000143,2]
[420339277,1775999440010,739.06,0.00028137,120]
[420339283,1775999440522,-233.38096937,0.000143,2]
[420339284,1775999440539,-306.63123109,0.000143,2]
[420339285,1775999440555,-2193.36876891,0.000143,2]
[420339286,1775999440565,-4.83123108,0.000143,2]
[420339287,1775999440585,-2495.16876892,0.000143,2]
[420339288,1775999440600,-300.0,0.000143,2]
[420339289,1775999440610,-300.0,0.000143,2]
[420339290,1775999440627,-300.0,0.000143,2]
[420339291,1775999440639,-300.0,0.000143,2]
[420339292,1775999440650,-300.0,0.000143,2]
[420339293,1775999440673,-291.74192804,0.000143,2]
[420339294,1775999440689,-500.0,0.000143,2]
[420339295,1775999440699,-500.0,0.000143,2]
[420339296,1775999440711,-500.0,0.000143,2]
[420339297,1775999440728,-100.18930304,0.000143,2]
[420339298,1775999440830,-399.81069696,0.000143,2]
[420339299,1775999440843,-1000.0,0.00014421,2]
[420339300,1775999440865,-158.92,0.00014447,2]
[420339301,1775999440878,-300.0,0.00015,2]
[420339302,1775999440887,-300.0,0.00015,2]
[420339303,1775999440915,-2128.59075541,0.00016,2]
[420339304,1775999440927,-3431.01700531,0.00016,2]
[420339305,1775999440951,-2129.74445639,0.00016,2]
[420339306,1775999440965,-1086.4395005,0.00016,2]
[420339307,1775999440977,-313.75889694,0.00016,2]
[420339308,1775999441115,739.06,0.00028713,120]
[420339309,1775999441164,-71000.00000006,0.00016,2]
[420339310,1775999441192,-123.81475883,0.00016,2]
[420339311,1775999441202,-5981.42820762,0.00016,2]
[420339313,1775999441380,-750.97674804,0.00016,2]
[420339314,1775999441441,-1050.37326,0.00016,2]
[420339315,1775999441529,739.06,0.00029288,120]
[420339325,1775999444318,-658.99256387,0.00016,2]
[420339326,1775999444345,-2304.080855,0.00016,2]
[420339327,1775999444760,-29124.38975067,0.00016,2]
[420339328,1775999444771,-158.92,0.00017337,2]
[420339329,1775999444791,-2746.44523012,0.0001767,2]
[420339330,1775999444801,-167.0,0.0002,2]
[420339331,1775999444815,-254.0,0.0002,2]
[420339332,1775999444831,-175.0,0.0002,2]
[420339333,1775999444850,-160.0,0.0002,2]
[420339334,1775999444860,-1561.15,0.0002,30]
[420339335,1775999444885,-1226.62246965,0.00020011,2]
[420339336,1775999444902,-121.37753035,0.00020011,2]
[420339337,1775999444912,-1168.72052691,0.00020011,2]
[420339348,1775999447690,-95.27947309,0.00020011,2]
[420339349,1775999447699,-1369.721,0.00020011,2]
[420339350,1775999447708,-416.0,0.00020011,2]
[420339351,1775999447724,-668.69121463,0.00020011,2]
[420339352,1775999447736,-755.04167674,0.00020011,2]
[420339353,1775999447747,-1048.26710863,0.00020011,2]
[420339354,1775999447760,-1471.775,0.00020157,2]
[420339355,1775999447780,-158.92,0.00020226,2]
[420339356,1775999447790,-254.0,0.00021,2]
[420339357,1775999447806,-175.0,0.00021,2]
[420339358,1775999447817,-2746.44523012,0.00021466,2]
[420339359,1775999447826,-2164.0,0.0002147,2]
[420339360,1775999447843,-695.94,0.00021499,2]
[420339361,1775999447852,-225.2772,0.00021764,2]
[420339362,1775999447863,-254.0,0.00022,2]
[420339363,1775999447877,-175.0,0.00022,2]
[420339364,1775999447898,-562.67311427,0.00022275,2]
[420339365,1775999447911,-1324.68,0.00022332,30]
[420339366,1775999447922,-240.0,0.00022438,4]
[420339367,1775999447935,-1471.775,0.00022833,2]
[420339368,1775999447945,-254.0,0.00023,2]
[420339369,1775999447960,-175.0,0.00023,2]
[420339370,1775999447970,-151.0,0.00023,2]
[420339371,1775999447990,-151.0,0.00023011,2]
[420339372,1775999448000,-1347.0,0.00023011,2]
[420339373,1775999448010,-1264.0,0.00023011,2]
[420339374,1775999448022,-416.0,0.00023011,2]
[420339375,1775999448036,-2472.0,0.00023011,2]
[420339376,1775999448051,-158.92,0.00023115,2]
[420339377,1775999448060,-254.0,0.00024,2]
[420339378,1775999448069,-175.0,0.00024,2]
[420339379,1775999448079,-166.66,0.00024394,30]
[420339380,1775999448094,-1323.19092526,0.00024618,2]
[420339381,1775999448108,-40.38907474,0.00024618,2]
[420339382,1775999448127,-1075.79,0.00024664,60]
[420339383,1775999448148,-156.0,0.000247,7]
[420339384,1775999448157,-156.0,0.000247,10]
[420339385,1775999448170,-166.66,0.00024907,30]
[420339386,1775999448180,-267.0,0.00025,2]
[420339387,1775999448191,-151.0,0.00025,2]
[420339388,1775999448202,-179.0,0.00025,2]
[420339389,1775999448215,-150.0,0.00025,2]
[420339390,1775999448228,-562.67311427,0.00025076,2]
[420339391,1775999448240,-1363.58,0.00025233,2]
[420339392,1775999448254,-2746.44523012,0.00025262,2]
[420339393,1775999448269,-150.0,0.00025297,2]
[420339394,1775999448278,-2000.0,0.00025352,2]
[420339395,1775999448288,-166.66,0.00025421,30]
[420339396,1775999448307,-1471.775,0.00025509,2]
[420339397,1775999448328,-1363.58,0.00025848,2]
[420339398,1775999448339,-166.66,0.00025934,30]
[420339399,1775999448354,-158.92,0.00026005,2]
[420339400,1775999448363,-151.0,0.00026008,7]
[420339401,1775999448373,-416.0,0.00026011,2]
[420339402,1775999448387,-2472.0,0.00026011,2]
[420339403,1775999448403,-1332.45,0.00026107,2]
[420339404,1775999448413,-5000.0,0.00026252,2]
[420339405,1775999448423,-166.66,0.00026448,30]
[420339406,1775999448444,-1363.58,0.00026464,2]
[420339407,1775999448454,-2164.0,0.00026838,2]
[420339408,1775999448466,-166.66,0.00026961,30]
[420339409,1775999448476,-659.72,0.00026995,60]
[420339410,1775999448489,-200.0,0.00027022,2]
[420339411,1775999448501,-1363.58,0.00027079,2]
[420339412,1775999448512,-509.0,0.00027137,2]
[420339413,1775999448523,-320.0,0.00027379,2]
[420339414,1775999448545,-1000.0,0.00027397,20]
[420339415,1775999448555,-175.2,0.000274,2]
[420339416,1775999448567,-175.2,0.000274,2]
[420339417,1775999448578,-2480.2,0.00027436,2]
[420339418,1775999448601,-562.67311427,0.00027876,2]
[420339419,1775999448614,-2000.0,0.00028169,2]
[420339420,1775999448633,-1471.775,0.00028185,2]
[420339421,1775999448643,-158.92,0.00028894,2]
[420339422,1775999448672,-416.0,0.00029011,2]
[420339423,1775999448698,-2472.0,0.00029011,2]
[420339424,1775999448708,-200.0,0.00029038,2]
[420339425,1775999448718,-2746.44523012,0.00029059,2]
[420339426,1775999448751,-1000.0,0.00029091,2]
[420339427,1775999448761,-1322.0,0.00029288,10]
[420339428,1775999448770,-257.48,0.00029327,60]
[420339429,1775999448790,-509.0,0.0002934,4]
[420339430,1775999448818,-150.0,0.00029534,2]
[420339431,1775999448828,-152.0,0.00029596,3]
[420339432,1775999448838,-151.0,0.0003,7]
[420339433,1775999448864,-798.0,0.00030137,7]
[420339434,1775999448886,-562.67311427,0.00030677,2]
[420339435,1775999448904,-2000.0,0.00030986,2]
[420339436,1775999448929,-150.0,0.00031011,2]
[420339437,1775999448942,-176.588056,0.0003118,120]
[420339438,1775999448951,-509.0,0.00031542,6]
[420339439,1775999448975,-151.0,0.00031667,7]
[420339440,1775999448986,-1143.21,0.00031667,2]
[420339441,1775999448997,-791.0,0.00031827,5]
[420339442,1775999449026,-152.0,0.00031827,4]
[420339443,1775999449048,-500.0,0.0003201,2]
[420339444,1775999449081,-500.0,0.0003201,15]
[420339445,1775999449102,-151.0,0.0003201,7]
[420339446,1775999449123,-500.0,0.0003201,7]
[420339447,1775999449159,-2472.0,0.00032011,2]
[420339448,1775999449186,-500.0,0.00032247,120]
[420339449,1775999449196,-1600.0,0.00032247,120]
[420339450,1775999449205,-1574.0,0.0003256,11]
[420339451,1775999449245,-150.0,0.00032562,2]
[420339452,1775999449255,-2000.0,0.000326,2]
[420339453,1775999449264,-777.0,0.00032793,5]
[420339454,1775999449299,-4974.08,0.00032793,2]
[420339455,1775999449311,-175.2,0.00032815,2]
[420339456,1775999449339,-156.0,0.00032825,30]
[420339457,1775999449353,-157.0,0.00032825,30]
[420339458,1775999449375,-158.0,0.00032825,30]
[420339459,1775999449386,-254.0,0.00032825,30]
[420339460,1775999449402,-156.0,0.00032825,30]
[420339461,1775999449439,-160.0,0.00032825,30]
[420339462,1775999449449,-175.0,0.00032825,30]
[420339463,1775999449464,-152.0,0.00032825,30]
[420339464,1775999449482,-157.0,0.00032825,30]
[420339465,1775999449493,-487.0,0.00032825,2]
[420339466,1775999449508,-487.0,0.00032825,2]
[420339467,1775999449536,-487.0,0.00032825,2]
[420339468,1775999449545,-487.0,0.00032825,2]
[420339469,1775999449571,-487.0,0.00032825,2]
[420339470,1775999449581,-487.0,0.00032825,2]
[420339471,1775999449616,-801.09,0.00032825,2]
[420339472,1775999449645,-2746.44523012,0.00032855,2]
[420339473,1775999449720,-151.0,0.00032877,7]
[420339474,1775999449748,-182.877668,0.00032877,7]
[420339475,1775999449774,-282.73517914,0.00032931,2]
[420339476,1775999449784,-1143.21,0.00033251,2]
[420339477,1775999449825,-500.0,0.0003328,120]
[420339478,1775999449835,-562.67311427,0.00033477,2]
[420339479,1775999449854,-2168.0,0.00033547,2]
[420339480,1775999449866,-563.50302462,0.00033712,2]
[420339481,1775999449875,-509.0,0.00033745,9]
[420339482,1775999449891,-2000.0,0.00033803,2]
[420339483,1775999449901,-712.0,0.00033824,5]
[420339484,1775999449917,-157.0,0.00033825,30]
[420339485,1775999449951,-158.0,0.00033825,30]
[420339486,1775999449963,-254.0,0.00033825,30]
[420339487,1775999449999,-160.0,0.00033825,30]
[420339488,1775999450025,-175.0,0.00033825,30]
[420339489,1775999450158,-152.0,0.00033825,30]
[420339490,1775999450170,-157.0,0.00033825,30]
[420339491,1775999450196,-152.0,0.00034058,5]
[420339492,1775999450209,-150.0,0.0003419,2]
[420339493,1775999450246,-150.0,0.000342,7]
[420339494,1775999450258,-150.0,0.000342,7]
[420339495,1775999450277,-150.0,0.000342,7]
[420339496,1775999450293,-879.5246032,0.0003425,60]
[420339497,1775999450319,-500.0,0.00034794,15]
[420339498,1775999450341,-1500.0,0.00034795,2]
[420339499,1775999450462,-157.0,0.00034825,30]
[420339500,1775999450473,-158.0,0.00034825,30]
[420339501,1775999450515,-254.0,0.00034825,30]
[420339502,1775999450526,-160.0,0.00034825,30]
[420339503,1775999450549,-175.0,0.00034825,30]
[420339504,1775999450560,-152.0,0.00034825,30]
[420339505,1775999450574,-157.0,0.00034825,30]
[420339506,1775999450602,-1143.21,0.00034834,2]
[420339507,1775999450611,-156.66,0.00035,120]
[420339508,1775999450626,-10000.0,0.00035,120]
[420339509,1775999450660,-2357.978,0.00035,2]
[420339510,1775999450673,-2000.0,0.00035,2]
[420339511,1775999450705,-2472.0,0.00035011,2]
[420339512,1775999450718,-157.0,0.00035825,30]
[420339513,1775999450750,-158.0,0.00035825,30]
[420339514,1775999450764,-254.0,0.00035825,30]
[420339515,1775999450829,-160.0,0.00035825,30]
[420339516,1775999450848,-175.0,0.00035825,30]
[420339517,1775999450873,-152.0,0.00035825,30]
[420339518,1775999450887,-157.0,0.00035825,30]
[420339519,1775999450898,-151.0,0.00035825,7]
[420339520,1775999450926,-1600.0,0.0003583,120]
[420339521,1775999450938,-150.0,0.00035899,2]
[420339522,1775999450952,-509.0,0.00035947,11]
[420339523,1775999450964,-156.0,0.00036,120]
[420339524,1775999450978,-156.0,0.00036,120]
[420339525,1775999450987,-1008.3969,0.00036073,2]
[420339526,1775999451002,-562.67311427,0.00036278,2]
[420339527,1775999451030,-152.0,0.00036289,6]
[420339528,1775999451039,-2000.0,0.000363,2]
[420339529,1775999451063,-151.0,0.000363,7]
[420339530,1775999451075,-1143.21,0.00036417,2]
[420339531,1775999451085,-563.50302462,0.00036532,2]
[420339532,1775999451123,-2000.0,0.0003662,5]
[420339533,1775999451139,-162.0,0.00036634,11]
[420339534,1775999451165,-270.0,0.0003665,8]
[420339535,1775999451180,-2746.44523012,0.00036651,2]
[420339536,1775999451226,-162.0,0.0003669,11]
[420339537,1775999451235,-151.0,0.0003669,7]
[420339538,1775999451263,-1204.615,0.00036712,46]
[420339539,1775999451273,-169.217,0.00036712,46]
[420339540,1775999451284,-359.82433119,0.00036744,2]
[420339541,1775999451307,-157.0,0.00036825,30]
[420339542,1775999451316,-158.0,0.00036825,30]
[420339543,1775999451325,-254.0,0.00036825,30]
[420339544,1775999451345,-160.0,0.00036825,30]
[420339545,1775999451355,-175.0,0.00036825,30]
[420339546,1775999451364,-152.0,0.00036825,30]
[420339547,1775999451383,-157.0,0.00036825,30]
[420339548,1775999451392,-150.0,0.00036893,30]
[420339549,1775999451402,-156.0,0.00037,120]
[420339550,1775999451417,-2000.0,0.00037,2]
[420339551,1775999451428,-2000.0,0.00037,2]
[420339552,1775999451437,-2000.0,0.00037,2]
[420339553,1775999451448,-2000.0,0.00037,2]
[420339554,1775999451461,-2000.0,0.00037,2]
[420339555,1775999451477,-2000.0,0.00037,2]
[420339556,1775999451486,-2000.0,0.00037,2]
[420339557,1775999451505,-2000.0,0.00037,2]
[420339558,1775999451517,-2000.0,0.00037,2]
[420339559,1775999451538,-2000.0,0.00037,2]
[420339560,1775999451548,-2000.0,0.00037,2]
[420339561,1775999451572,-240.0,0.00037006,43]
[420339562,1775999451582,-700.0,0.0003717,11]
[420339563,1775999451591,-500.0,0.00037179,120]
[420339564,1775999451604,-1564.87,0.00037196,120]
[420339565,1775999451622,-1564.87,0.00037196,120]
[420339566,1775999451634,-1564.87,0.00037196,120]
[420339567,1775999451658,-1564.87,0.00037196,120]
[420339568,1775999451668,-1564.87,0.00037196,120]
[420339569,1775999451684,-1564.88,0.00037196,120]
[420339570,1775999451702,-1565.76,0.00037196,120]
[420339571,1775999451715,-1564.87,0.00037196,120]
[420339572,1775999451748,-1564.87,0.00037196,120]
[420339573,1775999451758,-1564.87,0.00037196,120]
[420339574,1775999451776,-1564.87,0.00037196,120]
[420339575,1775999451805,-1564.87,0.00037196,120]
[420339576,1775999451832,-1564.87,0.00037196,120]
[420339577,1775999451860,-1036.93,0.00037196,120]
[420339578,1775999451870,-1564.87,0.00037196,120]
[420339579,1775999451879,-1564.87,0.00037196,120]
[420339580,1775999451921,-1564.87,0.00037196,120]
[420339581,1775999451931,-1564.87,0.00037196,120]
[420339582,1775999451942,-1564.87,0.00037196,120]
[420339583,1775999451965,-1564.87,0.00037196,120]
[420339584,1775999451974,-1564.87,0.00037196,120]